Cogmind - Beta 9.3 @@@ ROGUE MODE // 2019.12.17 @ 07:15:38 // Halloween2019/Abominations Player: spruce (@macklemurr) Result: Destroyed by Lesser Abomination with Improved EM Shotgun Performance ------------- Evolutions (1) 500 Regions Visited (2) 400 Robots Destroyed (13) 65 Value Destroyed (485) 485 Prototype IDs (2) 40 Alien Tech Used (0) 0 Bonus (0) 0 TOTAL SCORE: 1490 Bonus ------- None Cogmind --------- Core Integrity 0/400 Matter 134/300 Energy 100/100 System Corruption 13% Temperature Cool (0) Movement Core (50) Location -9/Materials Parts ------- > --- POWER (1) -------- (None) > --- PROPULSION (3) --- (None) > --- UTILITY (3) ------ (None) > --- WEAPON (2) ------- Improved Assault Rifle > --- INVENTORY (4) ---- (None) Peak State ------------ > --- POWER ------------ Improved Ion Engine > --- PROPULSION ------- Improved Aluminum Leg Improved Aluminum Leg Improved Aluminum Leg > --- UTILITY ---------- (None) > --- WEAPON ----------- Small Laser Beam Rifle > --- INVENTORY -------- (None) [Rating: 11] Favorites ----------- Power Ion Engine Engine Ion Engine Propulsion Improved Aluminum Leg Leg Improved Aluminum Leg Wheel Compact Wheel Utility Small Storage Unit Storage Small Storage Unit Processor Targeting Computer Weapon Assault Rifle Energy Gun Small Laser Ballistic Gun Assault Rifle Launcher Mini Grenade Launcher Build | -11 -10 -9 ------- Run | Scr Mat Mat Slots Evolved 2 | . . 2 Power . | . . . Propulsion 1 | . . 1 Utility 1 | . . 1 Weapon . | . . . Parts Attached 17 | 6 2 9 Power 2 | 1 . 1 Engine 2 | 1 . 1 Core . | . . . Reactor . | . . . Propulsion 5 | 2 . 3 Treads . | . . . Leg 3 | . . 3 Wheel 2 | 2 . . Hover . | . . . Flight . | . . . Utility 2 | 1 1 . Device . | . . . Storage 1 | 1 . . Processor 1 | . 1 . Hackware . | . . . Protection . | . . . Artifact . | . . . Weapon 8 | 2 1 5 Energy Gun 3 | . 1 2 Energy Cannon . | . . . Ballistic Gun 3 | 2 . 1 Ballistic Cannon . | . . . Launcher 2 | . . 2 Special Weapon . | . . . Impact Weapon . | . . . Slashing Weapon . | . . . Piercing Weapon . | . . . Special Melee Weapon . | . . . Unidentified Prototypes 2 | . . 2 Parts Lost 13 | . 4 9 Power 1 | . . 1 Propulsion 5 | . 2 3 Utility 1 | . . 1 Weapon 6 | . 2 4 Highest Loss Streak 8 | . 4 8 Average Slot Usage (%) 48 | . 67 33 Engine 6 | . 11 1 Leg 9 | . . 17 Wheel 8 | . 20 . Storage 4 | . 10 . Processor 2 | . 1 3 Energy Gun 4 | . 2 6 Ballistic Gun 10 | . 20 2 Naked Turns 24 | . 6 18 Heaviest Build 13 | 13 13 11 Greatest Support 39 | 26 26 39 Greatest Overweight (x) 2 | 1 2 . Average Overweight (x) . | . . . Largest Inventory Capacity 6 | 6 6 4 Average Capacity 4 | 5 5 4 Most Carried 4 | 4 . . Average Carried . | . . . Final Capacity 6 | 6 4 4 Final Carried . | . . . Class Distribution -------------------- 100% | Mutant Dominant Class ---------------- Mutant | -10/Materials Mutant | -9/Materials Resources | -11 -10 -9 ----------- Run | Scr Mat Mat Matter Collected 414 | 145 46 223 Remotely . | . . . Salvage Created 386 | . 254 132 Parts 30 | . 14 16 Haulers Intercepted . | . . . Recyclers Shooed 1 | . . 1 Parts Field Recycled . | . . . Retrieved Matter . | . . . Parts Self-Destructed . | . . . Prevented . | . . . Kills | -11 -10 -9 ------- Run | Scr Mat Mat Combat Hostiles Destroyed 10 | . 6 4 Guns 9 | . 6 3 AOE 1 | . . 1 Classes Destroyed 5 | . 3 2 Worker 1 | . . 1 Watcher 1 | . 1 . Grunt 7 | . 5 2 Abomination 3 | . 1 2 Anomaly 1 | . . 1 Best Kill Streak 5 | . 5 4 Combat Bots Only 5 | . 5 3 Max Kills in Single Turn 1 | . 1 1 Gunslinging . | . . . Exploded 1 | . . 1 Melee . | . . . Uniques/NPCs Destroyed . | . . . Combat | -11 -10 -9 -------- Run | Scr Mat Mat Damage Taken 1553 | 9 521 1023 Core 586 | 7 179 400 Absorbed by Shields . | . . . Core Remaining (%) 61 | 97 25 . Volleys Fired 83 | . 27 56 Largest 2 | . 2 1 Hottest 40 | . 40 40 Shots Fired 109 | . 53 56 Gun 103 | . 53 50 Cannon . | . . . Launcher 6 | . . 6 Special . | . . . Kinetic 74 | . 53 21 Thermal 29 | . . 29 Explosive 6 | . . 6 Electromagnetic . | . . . Robot Hit Streak 13 | . 6 13 Robot Miss Streak 5 | . 5 2 Penetration Max . | . . . Secondary Targets 1 | . 1 . Max Gunslinging Chain 1 | . 1 . Shots Hit Robots 74 | . 30 44 Core Hits 32 | . 15 17 Critical Hits 1 | . . 1 Critical Kills . | . . . Critical Parts Destroyed . | . . . Melee Attacks . | . . . Impact . | . . . Slashing . | . . . Piercing . | . . . Sneak Attacks . | . . . Combat Hostiles . | . . . Follow-up Attacks . | . . . Damage Inflicted 1308 | 4 441 863 Guns 1022 | . 437 585 Cannons . | . . . Explosions 278 | . . 278 Melee . | . . . Ramming 8 | 4 4 . Kinetic 674 | . 437 237 Thermal 348 | . . 348 Explosive 278 | . . 278 Electromagnetic . | . . . Impact . | . . . Slashing . | . . . Piercing . | . . . Highest Corruption 13 | . . 13 Average Corruption 9 | . . 9 Corruption Purged . | . . . Effects 5 | . . 5 Message Errors 1 | . . 1 Energy Discharges 1 | . . 1 Targeting Errors 3 | . . 3 Overload Shots . | . . . Overflow Damage . | . . . Projectiles . | . . . Explosions . | . . . Melee . | . . . Knockbacks . | . . . Impact . | . . . Kinetic . | . . . Secondary . | . . . Self-Inflicted Damage 4 | 2 2 . Shots . | . . . Rammed 2 | 1 1 . Targets Rammed 2 | 1 1 . Kicked . | . . . Crushed . | . . . Highest Temperature 18 | . 12 18 Average Temperature 7 | . 4 9 Received Heat Transfer 384 | . 240 144 Siege Activations . | . . . Robots Corrupted . | . . . Combat Hostiles . | . . . Parts Fried . | . . . Impact Corruptions . | . . . Robots Melted . | . . . Combat Hostiles . | . . . Parts Melted . | . . . Heat Transferred 295 | . . 295 Parts Sabotaged . | . . . Parts Stolen . | . . . Parts Stripped . | . . . Power Chain Reactions . | . . . Missiles Intercepted . | . . . Alert | -11 -10 -9 ------- Run | Scr Mat Mat Peak Influence 212 | . 212 136 Average Influence 92 | . 120 90 Maximum Alert Level 1 | . 1 . Low Security (%) 96 | 100 92 100 Level 1 3 | . 7 . Level 2 . | . . . Level 3 . | . . . Level 4 . | . . . Level 5 . | . . . High Security . | . . . Max Security . | . . . Squads Dispatched 8 | . 4 4 Investigation 2 | . 2 . Extermination . | . . . Reinforcement 5 | . 2 3 Assault 1 | . . 1 Garrison . | . . . Intercept . | . . . Construction Impeded . | . . . Haulers Reinforced . | . . . Stealth | -11 -10 -9 --------- Run | Scr Mat Mat Distress Signals 9 | . 1 8 Communications Jammed . | . . . Distress Signals . | . . . Times Spotted 25 | . 15 10 Peak Tracking Total 6 | . 6 4 Tactical Retreats 2 | . 1 1 Traps | -11 -10 -9 ------- Run | Scr Mat Mat Traps Triggered 2 | . . 2 Indirectly . | . . . Trap Hack Attempts . | . . . Triggered . | . . . Disarmed . | . . . Reprogrammed . | . . . Reused . | . . . Traps Extracted . | . . . Installed . | . . . Triggered . | . . . Machines | -11 -10 -9 ---------- Run | Scr Mat Mat Machines Disabled 2 | . 1 1 Max in Single Turn 1 | . 1 1 Machines Sabotaged . | . . . Garrisons Compromised . | . . . Overloaded Fab Kills . | . . . Fab Network Shutdowns . | . . . Hacking | -11 -10 -9 --------- Run | Scr Mat Mat Machines Accessed 2 | . 2 . Terminals . | . . . Fabricators . | . . . Repair Stations . | . . . Recycling Units 2 | . 2 . Scanalyzers . | . . . Garrison Access . | . . . Total Hacks 2 | . 2 . Successful 2 | . 2 . Failed . | . . . Catastrophic . | . . . Database Lockouts . | . . . Manual 2 | . 2 . Terminals . | . . . Fabricators . | . . . Repair Stations . | . . . Recycling Units 2 | . 2 . Scanalyzers . | . . . Garrison Access . | . . . Terminal Hacks . | . . . Fabricator Hacks . | . . . Repair Station Hacks . | . . . Recycling Unit Hacks . | . . . Scanalyzer . | . . . Garrison Access Hacks . | . . . Unauthorized Hacks 4 | . 4 . Terminals . | . . . Fabricators . | . . . Repair Stations . | . . . Recycling Units 2 | . 2 . Tunnel 2 | . 2 . Scanalyzers . | . . . Garrison Access . | . . . Data Cores Recovered . | . . . Used . | . . . Hacking Detections . | . . . Full Trace Events . | . . . Feedback Events . | . . . Feedback Blocked . | . . . Robot Schematics Acquired . | . . . Robots Built . | . . . Matter . | . . . Time . | . . . Total Robot Build Rating . | . . . Part Schematics Acquired . | . . . Parts Built . | . . . Matter . | . . . Time . | . . . Total Part Build Rating . | . . . Parts Repaired . | . . . Time . | . . . Parts Recycled . | . . . Recycled Matter . | . . . Retrieved Matter . | . . . Retrieved Components . | . . . Parts Scanalyzed . | . . . Part Schematics Acquired . | . . . Parts Damaged . | . . . Bothacking | -11 -10 -9 ------------ Run | Scr Mat Mat Used RIF Installer . | . . . Robots Hacked . | . . . Non-combat . | . . . Combat . | . . . Robot Hacks Applied . | . . . Relay Couplers Released . | . . . Robots Rewired . | . . . Allies Hacked . | . . . Hacks Repelled . | . . . Allies | -11 -10 -9 -------- Run | Scr Mat Mat Total Allies . | . . . Largest Group . | . . . Highest-Rated Group . | . . . Highest-Rated Ally . | . . . Total Orders . | . . . Ally Attacks . | . . . Total Damage . | . . . Kills . | . . . Allies Corrupted . | . . . Allies Melted . | . . . Intel | -11 -10 -9 ------- Run | Scr Mat Mat Robot Analysis Total . | . . . Derelict Logs Recovered . | . . . Drone Launches . | . . . Drone Recoveries . | . . . Exploration | -11 -10 -9 ------------- Run | Scr Mat Mat Turns Passed 466 | 49 183 234 Spaces Moved 287 | 38 117 132 Core 166 | 15 64 87 Treads . | . . . Legs 45 | . . 45 Wheels 76 | 23 53 . Hover . | . . . Flight . | . . . Fastest Speed 50 | 50 50 50 Average Speed 74 | 87 70 73 Slowest Speed 150 | 100 150 120 Overloaded Moves . | . . . Propulsion Burnouts . | . . . Robots Hopped . | . . . Cave-ins Triggered . | . . . Exploration Rate (%) 20 | 3 37 22 Regions Visited 2 Branch Regions . Pre-discovered Areas 2 | . 2 . Known Exits Taken . | . . . Unknown Exits Taken 2 | 1 1 . Scrap Searched . | . . . Spaces Dug . | . . . Terrain Destroyed 45 | . . 45 Melee . | . . . Projectile . | . . . AOE 45 | . . 45 Actions | -11 -10 -9 --------- Run | Scr Mat Mat Total 422 | 52 163 207 Wait 26 | . 15 11 Move 284 | 38 116 130 Hop . | . . . Pick Up 4 | 4 . . Fast Attach 17 | 6 2 9 Attach . | . . . Detach . | . . . Swap . | . . . Drop 7 | 4 2 1 Fire 83 | . 27 56 Melee . | . . . Ram 1 | . 1 . Kick . | . . . Crush . | . . . Escape Stasis . | . . . Rewire . | . . . Trap . | . . . Miscellaneous . | . . . Route ------- -11/Scrapyard -10/Materials -9/Materials History --------- Turn | Location | Event 6 | -11/Scrapyard | Discovered new exit (range 16) 50 | -11/Scrapyard | Entered Materials 187 | -10/Materials | Core integrity fell below 50% 204 | -10/Materials | Discovered new exit (range 15) 225 | -10/Materials | Lost 4 parts (2n2w) 233 | -10/Materials | Entered another Materials area 233 | -9/Materials | Evolved 2 slots: Propulsion x1, Utility x1 298 | -9/Materials | Discovered new exit (range 16) 303 | -9/Materials | Build established: Mutant 377 | -9/Materials | Core integrity fell below 50% 424 | -9/Materials | Lost 8 parts (1p3n4w) 438 | -9/Materials | System corruption reached 10% 440 | -9/Materials | Core integrity fell below 20% 467 | -9/Materials | Destroyed by Lesser Abomination with Improved EM Shotgun Last Messages --------------- K-01 Serf collects debris. Zapped by an electromagnetic arc from EM Anomaly. ,A9H0:VITDCPJFKMXJODB43/>&CK I0 Lesser Abomination absorbs Lgt. Ion Engine. System corrupted: Imp. Assault Rifle targeting data glitched. K-01 Serf collects debris. Zapped by an electromagnetic arc from EM Anomaly. Lesser Abomination sheds Corrupting Anomaly. K-01 Serf collects debris. Lesser Abomination suffers critical hit. K-01 Serf collects debris. Destroyed Lgt. Treads. System corrupted: Energy discharge (-24). K-01 Serf collects debris. System corrupted: Imp. Assault Rifle targeting data glitched. R-06 Scavenger collects Wheel. ALERT: Dispatching additional forces to engage threats. R-06 Scavenger collects Sml. Storage Unit. R-06 Scavenger collects Welding Torch. System corrupted: Imp. Assault Rifle targeting data glitched. Map ----- +----------------------------------------------------+ | | | | | | | | | | | | | | | | | | | | | | | | | | | | | #####?#??????????#############???????????????????? | | """" #???#####""" #???????????????????? | | """" #???#! " ##??????????????????? | | """" #???# " """ ##?????????????????? | | #???# " #?????????????????? | | ! #???# #?????????????????? | | ?????# #?????????????????? | | ???????# # ##########????????? | | +#############+########+######## ##???????? | | #???????? | | k % < #???????? | | @ A%r #???????? | | +############ ###### ####### #???????? | | #?????## # a # ##### ###!!##???????? | | """ #??????### # # A # ????# #??#########??? | | """ #????????#?### # ######### #????? #??? | | """ #?????????????## # #????? #??? | | #?????????????## # #?????" #??? | | #?????????????## #+###??"" #??? | | #??????????????######## # #?""" #??? | | #######???????????#######"""# # ## #??? | | ??????????????????+ # # ##""" #??? | | ??????????????????# + # ##""" #??? | | ??????????????????# #% # ##""" ##?? | | ??????????????????# # # ## "### | | ??????????????????#########"# # #" """" | | ??????????????????# # #"###""""""""" | | ??????????????????? T """ # % % | | ??????????????????????""" + T | | ??????????????????????""" # T | | ????????????????????? # """"""""% | | ??????????????????? """% # % " "" | | ???????????????????????"" # % ######### | | ???????????????????????"" # #???????? | | ??????????????????????? # """ #????????? | | ??????????????????????###+## """ ?????????? | +----------------------------------------------------+ Best States ------------- Heat Dissipation 28 Energy Generation 12 Energy Capacity 265 Matter Stores 210 Matter Capacity 300 Sight Range 16 Terrain Scan Density 10 Evasion (%) 50 Targeting Accuracy 5 Item Schematics ----------------- None Robot Schematics ------------------ None Fabricated ------------ Nothing Alien Tech Used ----------------- None Achievements -------------- None Challenges ------------ None Game ------ Seed CryofiberGhostUnit Manual? 0 Play Time 00:08:26 Cumulative 69.4 hours Start 2019.12.17 @ 07:10:04 End 2019.12.17 @ 07:15:38 Sessions 1 Manual Loads 0 Difficulty Rogue Special Mode Halloween2019/Abominations Game No. 185 Rogue 185 Adventurer 0 Explorer 0 Win Type - Total 1 Types 1/0/0/0/0/0/0 Lore% 66 Gallery% 64 Achievement% 52 Wizard Run 0 Options --------- ASCII 0 Keyboard 0 Movement Numpad Keybinds 0 Fullscreen 1 Font 24/Smallcaps Map View 76x50 Tactical HUD 0 Map Filters NONE Filters NONE Steam 1 RUN: 3dbe2c40-8963-4e01-88d9-838a7ce2c54d